[Event "Early-Titled-Tuesday-Blitz-May-14-2024"]
[Site "Chess.com"]
[Date "2024.05.14"]
[Round "10"]
[White "Kunalm64"]
[Black "briesmas"]
[Result "1-0"]
[WhiteElo "2617"]
[BlackElo "2388"]
[TimeControl "180+1"]
[EndTime "9:57:07 PDT"]
[Termination "Kunalm64 won by resignation"]

1. d4 {[%clk 0:03:00.9]} 1... d5 {[%clk 0:02:49.6]} 2. c4 {[%clk 0:03:00.6]}
2... c6 {[%clk 0:02:49.3]} 3. Nf3 {[%clk 0:03:00]} 3... Nf6 {[%clk 0:02:49]} 4.
Nc3 {[%clk 0:03:00.4]} 4... e6 {[%clk 0:02:48.9]} 5. Bg5 {[%clk 0:03:00.5]} 5...
Be7 {[%clk 0:02:48.1]} 6. e3 {[%clk 0:02:58.6]} 6... Nbd7 {[%clk 0:02:48.4]} 7.
Bd3 {[%clk 0:02:57.4]} 7... dxc4 {[%clk 0:02:47.4]} 8. Bxc4 {[%clk 0:02:57]}
8... b5 {[%clk 0:02:48.1]} 9. Bd3 {[%clk 0:02:56]} 9... Bb7 {[%clk 0:02:48.7]}
10. O-O {[%clk 0:02:55.4]} 10... a6 {[%clk 0:02:49.1]} 11. Rc1 {[%clk
0:02:54.7]} 11... O-O {[%clk 0:02:48.9]} 12. e4 {[%clk 0:02:52.2]} 12... h6
{[%clk 0:02:43.2]} 13. Bh4 {[%clk 0:02:51.6]} 13... Re8 {[%clk 0:02:33.5]} 14.
e5 {[%clk 0:02:51.3]} 14... Nd5 {[%clk 0:02:33.5]} 15. Bxe7 {[%clk 0:02:51]}
15... Qxe7 {[%clk 0:02:32]} 16. Ne4 {[%clk 0:02:51.3]} 16... Nf8 {[%clk
0:02:18.8]} 17. Nc5 {[%clk 0:02:47.3]} 17... Red8 {[%clk 0:02:16.8]} 18. Qd2
{[%clk 0:02:44.3]} 18... Rab8 {[%clk 0:02:14.5]} 19. Bb1 {[%clk 0:02:43]} 19...
Nb6 {[%clk 0:02:04.3]} 20. b3 {[%clk 0:02:41.9]} 20... Ba8 {[%clk 0:01:57.8]}
21. Qe3 {[%clk 0:02:36.7]} 21... a5 {[%clk 0:01:54.7]} 22. Nd2 {[%clk
0:02:31.4]} 22... Nbd7 {[%clk 0:01:47.7]} 23. Nde4 {[%clk 0:02:30.3]} 23... Nb6
{[%clk 0:01:39.2]} 24. Rfd1 {[%clk 0:02:22.1]} 24... Rd5 {[%clk 0:01:39.4]} 25.
Qg3 {[%clk 0:02:10.4]} 25... Rbd8 {[%clk 0:01:36]} 26. Nf6+ {[%clk 0:02:10]}
26... Kh8 {[%clk 0:01:34.9]} 27. Nxd5 {[%clk 0:02:09.9]} 27... Nxd5 {[%clk
0:01:29.7]} 28. Be4 {[%clk 0:02:04.2]} 28... b4 {[%clk 0:01:26.8]} 29. Bxd5
{[%clk 0:02:02.4]} 29... Rxd5 {[%clk 0:01:27.7]} 30. Ne4 {[%clk 0:02:00.1]}
30... Ng6 {[%clk 0:01:23]} 31. Rc5 {[%clk 0:01:52.4]} 31... Qd7 {[%clk
0:01:12.1]} 32. Rxd5 {[%clk 0:01:44.6]} 32... Qxd5 {[%clk 0:01:13]} 33. Nc5
{[%clk 0:01:44.8]} 33... Ne7 {[%clk 0:01:06.3]} 34. Qf3 {[%clk 0:01:35.9]} 34...
Qxf3 {[%clk 0:00:46.4]} 35. gxf3 {[%clk 0:01:36.8]} 35... Nf5 {[%clk 0:00:44]}
36. Kf1 {[%clk 0:01:33.1]} 36... Kg8 {[%clk 0:00:42.5]} 37. Ke2 {[%clk
0:01:32.8]} 37... Kf8 {[%clk 0:00:41.3]} 38. Ne4 {[%clk 0:01:29.2]} 38... Ke7
{[%clk 0:00:39.3]} 39. Ng3 {[%clk 0:01:29.3]} 39... Nh4 {[%clk 0:00:29.9]} 40.
Rc1 {[%clk 0:01:22.8]} 40... c5 {[%clk 0:00:24.3]} 41. Rxc5 {[%clk 0:01:23.3]}
41... Nxf3 {[%clk 0:00:20.6]} 42. Ke3 {[%clk 0:01:22.6]} 42... Ng5 {[%clk
0:00:16.5]} 43. Rxa5 {[%clk 0:01:16.2]} 43... Bd5 {[%clk 0:00:14.1]} 44. h4
{[%clk 0:01:13.6]} 44... Nf3 {[%clk 0:00:11.3]} 45. Rxd5 {[%clk 0:01:13.2]}
45... exd5 {[%clk 0:00:12.2]} 46. Kxf3 {[%clk 0:01:13.3]} 46... f6 {[%clk
0:00:12.8]} 47. Nf5+ {[%clk 0:01:12.1]} 47... Kf7 {[%clk 0:00:11.8]} 48. e6+
{[%clk 0:01:09.8]} 48... Kxe6 {[%clk 0:00:11.3]} 49. Nxg7+ {[%clk 0:01:10.4]}
1-0

[Event "Early-Titled-Tuesday-Blitz-May-14-2024"]
[Site "Chess.com"]
[Date "2024.05.14"]
[Round "10"]
[White "GMG"]
[Black "ContrVersia"]
[Result "1-0"]
[WhiteElo "2819"]
[BlackElo "2896"]
[TimeControl "180+1"]
[EndTime "9:57:13 PDT"]
[Termination "GMG won by resignation"]

1. Nf3 {[%clk 0:03:00.9]} 1... d5 {[%clk 0:02:58.6]} 2. g3 {[%clk 0:03:00.7]}
2... Nd7 {[%clk 0:02:58.4]} 3. d4 {[%clk 0:02:59.9]} 3... Nb6 {[%clk 0:02:58.8]}
4. a4 {[%clk 0:03:00.5]} 4... a5 {[%clk 0:02:59]} 5. Nc3 {[%clk 0:03:01.1]} 5...
Nf6 {[%clk 0:02:59]} 6. Bg2 {[%clk 0:03:00.2]} 6... h6 {[%clk 0:02:58.5]} 7. Qd3
{[%clk 0:02:56.1]} 7... c6 {[%clk 0:02:54.7]} 8. O-O {[%clk 0:02:44.5]} 8... g6
{[%clk 0:02:54.8]} 9. e4 {[%clk 0:02:43.5]} 9... dxe4 {[%clk 0:02:54.9]} 10.
Nxe4 {[%clk 0:02:44.4]} 10... Nxe4 {[%clk 0:02:54.7]} 11. Qxe4 {[%clk
0:02:44.3]} 11... Bg7 {[%clk 0:02:51.5]} 12. Re1 {[%clk 0:02:39.1]} 12... Bf5
{[%clk 0:02:51]} 13. Qe2 {[%clk 0:02:37.9]} 13... Bg4 {[%clk 0:02:49.9]} 14. c3
{[%clk 0:02:36.3]} 14... e6 {[%clk 0:02:44.1]} 15. h3 {[%clk 0:02:34.1]} 15...
Bxf3 {[%clk 0:02:44]} 16. Bxf3 {[%clk 0:02:34.8]} 16... O-O {[%clk 0:02:44.4]}
17. Qc2 {[%clk 0:02:31.8]} 17... Nd5 {[%clk 0:02:40.9]} 18. Qb3 {[%clk
0:02:30.9]} 18... Qc7 {[%clk 0:02:38.1]} 19. h4 {[%clk 0:02:30.3]} 19... h5
{[%clk 0:02:37.9]} 20. Bg5 {[%clk 0:02:29]} 20... Rfe8 {[%clk 0:02:35.4]} 21.
Kg2 {[%clk 0:02:28.9]} 21... Ne7 {[%clk 0:02:23.6]} 22. Bf4 {[%clk 0:02:21.2]}
22... Qd7 {[%clk 0:02:23.7]} 23. Rad1 {[%clk 0:02:19.4]} 23... Nf5 {[%clk
0:02:23.2]} 24. Be4 {[%clk 0:02:17.6]} 24... Ra6 {[%clk 0:02:16.8]} 25. Be5
{[%clk 0:02:15.7]} 25... Bh6 {[%clk 0:02:14]} 26. Bxf5 {[%clk 0:02:12]} 26...
exf5 {[%clk 0:02:03.3]} 27. c4 {[%clk 0:01:50]} 27... f4 {[%clk 0:01:51.8]} 28.
Bxf4 {[%clk 0:01:41.7]} 28... Rxe1 {[%clk 0:01:41.7]} 29. Rxe1 {[%clk
0:01:42.6]} 29... Bxf4 {[%clk 0:01:42.3]} 30. gxf4 {[%clk 0:01:42.3]} 30... Ra8
{[%clk 0:01:42.7]} 31. d5 {[%clk 0:01:20.9]} 31... Rd8 {[%clk 0:01:42.7]} 32.
Re5 {[%clk 0:01:16.6]} 32... Qg4+ {[%clk 0:01:34.4]} 33. Qg3 {[%clk 0:01:16.1]}
33... Qd1 {[%clk 0:01:34.9]} 34. f5 {[%clk 0:01:10.7]} 34... Qc2 {[%clk
0:00:42.5]} 35. fxg6 {[%clk 0:01:06.3]} 35... fxg6 {[%clk 0:00:42.9]} 36. Re6
{[%clk 0:01:03.1]} 36... Rf8 {[%clk 0:00:21.4]} 37. Rxg6+ {[%clk 0:00:48.5]}
37... Kh7 {[%clk 0:00:19.4]} 38. Rg7+ {[%clk 0:00:46]} 38... Kh8 {[%clk
0:00:19.8]} 39. Rg5 {[%clk 0:00:43.8]} 39... Qe4+ {[%clk 0:00:18.5]} 40. Kh2
{[%clk 0:00:41.9]} 40... Qe2 {[%clk 0:00:10]} 41. Qc3+ {[%clk 0:00:39.2]} 1-0

[Event "Early-Titled-Tuesday-Blitz-May-14-2024"]
[Site "Chess.com"]
[Date "2024.05.14"]
[Round "10"]
[White "Mikhail_Golubev"]
[Black "Aemulus20"]
[Result "1-0"]
[WhiteElo "2562"]
[BlackElo "2643"]
[TimeControl "180+1"]
[EndTime "9:57:15 PDT"]
[Termination "Mikhail_Golubev won by checkmate"]

1. e4 {[%clk 0:03:00.9]} 1... c5 {[%clk 0:02:58.2]} 2. Nf3 {[%clk 0:03:00.2]}
2... d6 {[%clk 0:02:56.7]} 3. d4 {[%clk 0:03:00.1]} 3... cxd4 {[%clk 0:02:57.5]}
4. Nxd4 {[%clk 0:03:00.4]} 4... Nf6 {[%clk 0:02:58.1]} 5. Nc3 {[%clk 0:03:00.4]}
5... a6 {[%clk 0:02:58.5]} 6. Bc4 {[%clk 0:03:00.5]} 6... e6 {[%clk 0:02:58.7]}
7. Bb3 {[%clk 0:03:00.6]} 7... b5 {[%clk 0:02:59.1]} 8. O-O {[%clk 0:02:59.4]}
8... Be7 {[%clk 0:02:59.5]} 9. Qf3 {[%clk 0:02:58.4]} 9... Qb6 {[%clk
0:02:59.7]} 10. Be3 {[%clk 0:02:57.8]} 10... Qb7 {[%clk 0:03:00]} 11. Qg3 {[%clk
0:02:58]} 11... Nbd7 {[%clk 0:02:59.2]} 12. Rad1 {[%clk 0:02:55.3]} 12... Nc5
{[%clk 0:02:45.1]} 13. e5 {[%clk 0:02:47.5]} 13... dxe5 {[%clk 0:02:37.2]} 14.
Nf5 {[%clk 0:02:46.6]} 14... exf5 {[%clk 0:02:02.1]} 15. Qxg7 {[%clk 0:02:44.7]}
15... Rf8 {[%clk 0:00:46.6]} 16. Bxc5 {[%clk 0:02:44.3]} 16... Be6 {[%clk
0:00:31.8]} 17. Bxe7 {[%clk 0:01:39.3]} 17... Kxe7 {[%clk 0:00:11.4]} 18. Bxe6
{[%clk 0:01:19.6]} 18... Kxe6 {[%clk 0:00:12.3]} 19. Qh6 {[%clk 0:01:00.4]}
19... Rg8 {[%clk 0:00:09.7]} 20. Rd6+ {[%clk 0:00:38.2]} 20... Kxd6 {[%clk
0:00:09.8]} 21. Qxf6+ {[%clk 0:00:38.9]} 21... Kc7 {[%clk 0:00:07.3]} 22. Qxe5+
{[%clk 0:00:37]} 22... Kb6 {[%clk 0:00:04.3]} 23. Qd4+ {[%clk 0:00:32.9]} 23...
Kc7 {[%clk 0:00:00.8]} 24. Nd5+ {[%clk 0:00:30.7]} 24... Kc8 {[%clk 0:00:00.9]}
25. Re1 {[%clk 0:00:26.4]} 25... Rb8 {[%clk 0:00:00.1]} 26. Qc5+ {[%clk
0:00:12]} 26... Qc7 {[%clk 0:00:00.5]} 27. Qxc7# {[%clk 0:00:11.4]} 1-0

[Event "Early-Titled-Tuesday-Blitz-May-14-2024"]
[Site "Chess.com"]
[Date "2024.05.14"]
[Round "10"]
[White "Incognizance"]
[Black "dianamirza"]
[Result "0-1"]
[WhiteElo "1967"]
[BlackElo "1951"]
[TimeControl "180+1"]
[EndTime "9:57:15 PDT"]
[Termination "dianamirza won by resignation"]

1. d4 {[%clk 0:03:00.9]} 1... Nf6 {[%clk 0:02:48.4]} 2. c4 {[%clk 0:03:00.5]}
2... c5 {[%clk 0:02:48.5]} 3. d5 {[%clk 0:02:58.6]} 3... b5 {[%clk 0:02:49]} 4.
Nd2 {[%clk 0:02:58.3]} 4... bxc4 {[%clk 0:02:48.2]} 5. Nxc4 {[%clk 0:02:58.6]}
5... g6 {[%clk 0:02:48.8]} 6. b3 {[%clk 0:02:58.5]} 6... Bg7 {[%clk 0:02:49.4]}
7. Bb2 {[%clk 0:02:59.1]} 7... O-O {[%clk 0:02:47.4]} 8. Nf3 {[%clk 0:02:47.5]}
8... Bb7 {[%clk 0:02:44.7]} 9. Bxf6 {[%clk 0:02:32.6]} 9... Bxf6 {[%clk
0:02:41.8]} 10. Rc1 {[%clk 0:02:33.2]} 10... Bg7 {[%clk 0:02:37.9]} 11. e4
{[%clk 0:02:33.2]} 11... a5 {[%clk 0:02:36.9]} 12. Be2 {[%clk 0:02:25.3]} 12...
d6 {[%clk 0:02:31]} 13. O-O {[%clk 0:02:24.9]} 13... Nd7 {[%clk 0:02:31.1]} 14.
Qc2 {[%clk 0:02:18.6]} 14... Ne5 {[%clk 0:02:30.3]} 15. Nfxe5 {[%clk 0:02:15.9]}
15... Bxe5 {[%clk 0:02:31.2]} 16. Nxe5 {[%clk 0:01:57.5]} 16... dxe5 {[%clk
0:02:32.1]} 17. Qxc5 {[%clk 0:01:57.3]} 17... a4 {[%clk 0:02:27.2]} 18. b4
{[%clk 0:01:54.7]} 18... Rc8 {[%clk 0:02:21.5]} 19. Qe3 {[%clk 0:01:53]} 19...
Qd6 {[%clk 0:02:19.3]} 20. a3 {[%clk 0:01:50.4]} 20... f5 {[%clk 0:02:15.9]} 21.
f3 {[%clk 0:01:49.8]} 21... f4 {[%clk 0:02:15.6]} 22. Qf2 {[%clk 0:01:48.4]}
22... Ba6 {[%clk 0:02:10.8]} 23. Bxa6 {[%clk 0:01:45.6]} 23... Qxa6 {[%clk
0:02:11.7]} 24. Rc5 {[%clk 0:01:37.5]} 24... Qd3 {[%clk 0:02:06.8]} 25. Qa2
{[%clk 0:01:22]} 25... Qe3+ {[%clk 0:01:57.2]} 26. Kh1 {[%clk 0:01:22]} 26...
Rxc5 {[%clk 0:01:56.2]} 27. bxc5 {[%clk 0:01:21.2]} 27... Qxc5 {[%clk
0:01:57.1]} 28. d6+ {[%clk 0:01:16.6]} 28... Kg7 {[%clk 0:01:48.6]} 29. dxe7
{[%clk 0:01:16.7]} 29... Qxe7 {[%clk 0:01:48.4]} 30. Qb2 {[%clk 0:01:07.3]}
30... Rd8 {[%clk 0:01:42]} 31. Qb4 {[%clk 0:00:44]} 31... Qxb4 {[%clk
0:01:27.2]} 32. axb4 {[%clk 0:00:44.9]} 32... a3 {[%clk 0:01:18.8]} 33. h3
{[%clk 0:00:40.2]} 33... Kf6 {[%clk 0:01:17]} 34. Ra1 {[%clk 0:00:38.8]} 34...
Rd3 {[%clk 0:01:13.1]} 35. b5 {[%clk 0:00:38.7]} 35... Ke6 {[%clk 0:01:12.2]}
36. b6 {[%clk 0:00:34.7]} 36... Kd7 {[%clk 0:01:09.8]} 37. Rc1 {[%clk
0:00:20.3]} 37... Rb3 {[%clk 0:01:05.1]} 38. Rc7+ {[%clk 0:00:16]} 38... Kd6
{[%clk 0:00:58.4]} 39. Ra7 {[%clk 0:00:15.8]} 39... Kc6 {[%clk 0:00:57]} 40. b7
{[%clk 0:00:14.8]} 40... Kc7 {[%clk 0:00:52.1]} 41. Ra4 {[%clk 0:00:01.5]} 41...
Kxb7 {[%clk 0:00:50.6]} 42. Kh2 {[%clk 0:00:01.6]} 42... Kb6 {[%clk 0:00:50.6]}
43. h4 {[%clk 0:00:01.8]} 43... Kb5 {[%clk 0:00:50.8]} 44. Kh3 {[%clk
0:00:02.5]} 44... Kxa4 {[%clk 0:00:51]} 0-1

[Event "Early-Titled-Tuesday-Blitz-May-14-2024"]
[Site "Chess.com"]
[Date "2024.05.14"]
[Round "10"]
[White "dinushkipremanath"]
[Black "MariaFominykh"]
[Result "1-0"]
[WhiteElo "2177"]
[BlackElo "2319"]
[TimeControl "180+1"]
[EndTime "9:57:20 PDT"]
[Termination "dinushkipremanath won on time"]

1. d4 {[%clk 0:03:00.9]} 1... Nf6 {[%clk 0:02:57.6]} 2. Nf3 {[%clk 0:03:01.2]}
2... g6 {[%clk 0:02:57.8]} 3. Bf4 {[%clk 0:03:01.2]} 3... Bg7 {[%clk 0:02:57.7]}
4. Nbd2 {[%clk 0:03:01.7]} 4... d6 {[%clk 0:02:57.8]} 5. e4 {[%clk 0:03:01.6]}
5... Nbd7 {[%clk 0:02:57.4]} 6. Bc4 {[%clk 0:02:58.3]} 6... O-O {[%clk
0:02:57.1]} 7. h3 {[%clk 0:02:57.8]} 7... e5 {[%clk 0:02:52.6]} 8. dxe5 {[%clk
0:02:54.5]} 8... dxe5 {[%clk 0:02:48.9]} 9. Bg5 {[%clk 0:02:54.5]} 9... h6
{[%clk 0:02:43.6]} 10. Bh4 {[%clk 0:02:54.3]} 10... c6 {[%clk 0:02:40.3]} 11.
Qe2 {[%clk 0:02:53.7]} 11... b5 {[%clk 0:02:35.2]} 12. Bd3 {[%clk 0:02:52.6]}
12... Qc7 {[%clk 0:02:32.1]} 13. O-O {[%clk 0:02:51.7]} 13... Nh5 {[%clk
0:02:27.8]} 14. c4 {[%clk 0:02:47.7]} 14... Nf4 {[%clk 0:02:24.6]} 15. Qe3
{[%clk 0:02:47.5]} 15... b4 {[%clk 0:02:09]} 16. Rfd1 {[%clk 0:02:44.6]} 16...
Nb6 {[%clk 0:01:45.6]} 17. Bf1 {[%clk 0:02:41.6]} 17... Be6 {[%clk 0:01:25.1]}
18. Rac1 {[%clk 0:02:39.4]} 18... a5 {[%clk 0:01:22]} 19. Nb3 {[%clk 0:02:38]}
19... Na4 {[%clk 0:01:20.9]} 20. Rc2 {[%clk 0:02:34.9]} 20... f6 {[%clk
0:01:17.3]} 21. Nc5 {[%clk 0:02:32.8]} 21... Nxc5 {[%clk 0:01:15]} 22. Qxc5
{[%clk 0:02:33.7]} 22... Rfd8 {[%clk 0:01:11.8]} 23. Rcd2 {[%clk 0:02:30.8]}
23... Bf8 {[%clk 0:01:05.2]} 24. Qe3 {[%clk 0:02:28.2]} 24... Be7 {[%clk
0:00:49.1]} 25. Bg3 {[%clk 0:02:27.7]} 25... g5 {[%clk 0:00:38.5]} 26. Bxf4
{[%clk 0:02:27.2]} 26... gxf4 {[%clk 0:00:35.1]} 27. Qe1 {[%clk 0:02:25.4]}
27... Rxd2 {[%clk 0:00:32.4]} 28. Rxd2 {[%clk 0:02:24.5]} 28... Rd8 {[%clk
0:00:30.6]} 29. Qd1 {[%clk 0:02:24.7]} 29... Rxd2 {[%clk 0:00:27.9]} 30. Qxd2
{[%clk 0:02:25.6]} 30... Qd8 {[%clk 0:00:18.2]} 31. b3 {[%clk 0:02:22.8]} 31...
Qxd2 {[%clk 0:00:17]} 32. Nxd2 {[%clk 0:02:23.7]} 32... Bc5 {[%clk 0:00:17]} 33.
Be2 {[%clk 0:02:22.6]} 33... Kf8 {[%clk 0:00:15.6]} 34. Bg4 {[%clk 0:02:22.4]}
34... Ke7 {[%clk 0:00:11.9]} 35. Bxe6 {[%clk 0:02:21.9]} 35... Kxe6 {[%clk
0:00:12.8]} 36. Kf1 {[%clk 0:02:19.7]} 36... f5 {[%clk 0:00:12.5]} 37. Ke2
{[%clk 0:02:16.8]} 37... Bd4 {[%clk 0:00:11.9]} 38. f3 {[%clk 0:02:13.5]} 38...
Bc3 {[%clk 0:00:09.1]} 39. exf5+ {[%clk 0:02:13.3]} 39... Kxf5 {[%clk 0:00:10]}
40. Ne4 {[%clk 0:02:13.4]} 40... Bd4 {[%clk 0:00:10.1]} 41. Nd6+ {[%clk
0:02:11.1]} 41... Ke6 {[%clk 0:00:10.1]} 42. Ne4 {[%clk 0:02:05.2]} 42... Kf5
{[%clk 0:00:09.8]} 43. Kd3 {[%clk 0:02:05.2]} 43... Ke6 {[%clk 0:00:09.6]} 44.
c5 {[%clk 0:02:02.3]} 44... Be3 {[%clk 0:00:09.4]} 45. Kc4 {[%clk 0:02:02]}
45... h5 {[%clk 0:00:08]} 46. Nd6 {[%clk 0:01:59.6]} 46... h4 {[%clk 0:00:06.8]}
47. Nb7 {[%clk 0:01:58.7]} 47... e4 {[%clk 0:00:04.1]} 48. fxe4 {[%clk
0:01:55.4]} 48... Ke5 {[%clk 0:00:04.3]} 49. Kd3 {[%clk 0:01:49.8]} 49... Bd4
{[%clk 0:00:02.6]} 50. Nxa5 {[%clk 0:01:47.7]} 50... Bxc5 {[%clk 0:00:02.7]} 51.
Nxc6+ {[%clk 0:01:47.9]} 51... Kd6 {[%clk 0:00:03]} 52. Nd8 {[%clk 0:01:46.2]}
52... Ke5 {[%clk 0:00:01.4]} 53. Nf7+ {[%clk 0:01:43.1]} 53... Kf6 {[%clk
0:00:01.6]} 54. Nh6 {[%clk 0:01:40.8]} 54... Ke5 {[%clk 0:00:01.4]} 55. Nf5
{[%clk 0:01:39.1]} 55... f3 {[%clk 0:00:00.3]} 56. gxf3 {[%clk 0:01:38.2]} 56...
Kf4 {[%clk 0:00:00.5]} 57. Nxh4 {[%clk 0:01:38.1]} 1-0

[Event "Early-Titled-Tuesday-Blitz-May-14-2024"]
[Site "Chess.com"]
[Date "2024.05.14"]
[Round "10"]
[White "ploxoi"]
[Black "jaskol95"]
[Result "0-1"]
[WhiteElo "2339"]
[BlackElo "2504"]
[TimeControl "180+1"]
[EndTime "9:57:22 PDT"]
[Termination "jaskol95 won by resignation"]

1. Nf3 {[%clk 0:03:00.9]} 1... d5 {[%clk 0:02:59.3]} 2. g3 {[%clk 0:02:58.8]}
2... Nd7 {[%clk 0:02:57.7]} 3. Bg2 {[%clk 0:02:58.7]} 3... Ngf6 {[%clk
0:02:58.3]} 4. d4 {[%clk 0:02:57.6]} 4... Nb6 {[%clk 0:02:58.2]} 5. O-O {[%clk
0:02:57.2]} 5... Bf5 {[%clk 0:02:58.8]} 6. b3 {[%clk 0:02:54.3]} 6... e6 {[%clk
0:02:59.1]} 7. Nbd2 {[%clk 0:02:49]} 7... c6 {[%clk 0:02:59.5]} 8. Nh4 {[%clk
0:02:49.5]} 8... Bg6 {[%clk 0:02:56.1]} 9. Bb2 {[%clk 0:02:46.1]} 9... Be7
{[%clk 0:02:55.2]} 10. Re1 {[%clk 0:02:44.6]} 10... Bh5 {[%clk 0:02:35.2]} 11.
Rc1 {[%clk 0:02:34.6]} 11... Ne4 {[%clk 0:02:26.4]} 12. Nhf3 {[%clk 0:02:31.7]}
12... f5 {[%clk 0:02:22]} 13. Ne5 {[%clk 0:02:22.5]} 13... O-O {[%clk
0:02:21.8]} 14. f3 {[%clk 0:02:16.7]} 14... Nf6 {[%clk 0:02:14.3]} 15. c4 {[%clk
0:02:09.3]} 15... Nbd7 {[%clk 0:02:11.8]} 16. Qc2 {[%clk 0:02:04.5]} 16... Nxe5
{[%clk 0:02:10.4]} 17. dxe5 {[%clk 0:02:05.4]} 17... Nd7 {[%clk 0:02:11.1]} 18.
e4 {[%clk 0:01:48.9]} 18... fxe4 {[%clk 0:02:05]} 19. fxe4 {[%clk 0:01:48.8]}
19... Qb6+ {[%clk 0:01:54.9]} 20. Kh1 {[%clk 0:01:49]} 20... d4 {[%clk
0:01:39.5]} 21. c5 {[%clk 0:01:49.3]} 21... Bxc5 {[%clk 0:01:26.2]} 22. Nc4
{[%clk 0:00:51.7]} 22... Qc7 {[%clk 0:01:26.4]} 23. a3 {[%clk 0:00:37.4]} 23...
a5 {[%clk 0:01:17.6]} 24. Qd2 {[%clk 0:00:33.1]} 24... Rad8 {[%clk 0:00:52.6]}
25. Bh3 {[%clk 0:00:15]} 25... Nxe5 {[%clk 0:00:49.5]} 26. Qg5 {[%clk
0:00:07.8]} 26... Bf3+ {[%clk 0:00:45.5]} 27. Kg1 {[%clk 0:00:07.5]} 27... Nd3
{[%clk 0:00:35.7]} 28. Bxe6+ {[%clk 0:00:06.6]} 28... Kh8 {[%clk 0:00:36.1]} 29.
Rf1 {[%clk 0:00:05.1]} 29... Nxc1 {[%clk 0:00:35.7]} 30. Qxc5 {[%clk 0:00:05.4]}
30... Nd3 {[%clk 0:00:32.8]} 31. Qxd4 {[%clk 0:00:05.6]} 31... Rxd4 {[%clk
0:00:32.1]} 32. Bxd4 {[%clk 0:00:05.7]} 32... Qe7 {[%clk 0:00:26.4]} 33. Bf5
{[%clk 0:00:04.8]} 33... Bxe4 {[%clk 0:00:24.7]} 34. Bc5 {[%clk 0:00:03.3]} 0-1

[Event "Early-Titled-Tuesday-Blitz-May-14-2024"]
[Site "Chess.com"]
[Date "2024.05.14"]
[Round "10"]
[White "Flaccidmoves"]
[Black "Felix-Rose"]
[Result "1-0"]
[WhiteElo "2437"]
[BlackElo "2265"]
[TimeControl "180+1"]
[EndTime "9:57:23 PDT"]
[Termination "Flaccidmoves won by resignation"]

1. e4 {[%clk 0:03:00.9]} 1... e5 {[%clk 0:02:58.7]} 2. Nf3 {[%clk 0:03:00.2]}
2... Nc6 {[%clk 0:02:58.5]} 3. Bc4 {[%clk 0:03:00.7]} 3... Nf6 {[%clk
0:02:58.3]} 4. d3 {[%clk 0:03:00.1]} 4... Bc5 {[%clk 0:02:58.2]} 5. O-O {[%clk
0:02:56.1]} 5... d6 {[%clk 0:02:56.9]} 6. c3 {[%clk 0:02:54.8]} 6... a5 {[%clk
0:02:56.6]} 7. d4 {[%clk 0:02:45.4]} 7... Ba7 {[%clk 0:02:51]} 8. dxe5 {[%clk
0:02:38.5]} 8... Nxe5 {[%clk 0:02:50.6]} 9. Nxe5 {[%clk 0:02:36.5]} 9... dxe5
{[%clk 0:02:50.5]} 10. Qxd8+ {[%clk 0:02:35.3]} 10... Kxd8 {[%clk 0:02:51.4]}
11. Bxf7 {[%clk 0:02:34.7]} 11... Rf8 {[%clk 0:02:50.7]} 12. Bb3 {[%clk
0:02:25.6]} 12... Nxe4 {[%clk 0:02:45.8]} 13. Be3 {[%clk 0:02:24.1]} 13... Bxe3
{[%clk 0:02:42.8]} 14. fxe3 {[%clk 0:02:25]} 14... Rxf1+ {[%clk 0:02:42.2]} 15.
Kxf1 {[%clk 0:02:25.9]} 15... a4 {[%clk 0:02:37.1]} 16. Bc2 {[%clk 0:02:23.6]}
16... Bf5 {[%clk 0:02:34.9]} 17. Ke1 {[%clk 0:02:22.5]} 17... Bg6 {[%clk
0:02:33.3]} 18. Nd2 {[%clk 0:02:19.5]} 18... Nxd2 {[%clk 0:02:24]} 19. Bxg6
{[%clk 0:02:18.9]} 19... Nc4 {[%clk 0:02:22]} 20. Bxh7 {[%clk 0:02:12.2]} 20...
Nxb2 {[%clk 0:02:20.2]} 21. a3 {[%clk 0:02:04.6]} 21... Nc4 {[%clk 0:02:06.5]}
22. Ke2 {[%clk 0:02:04.3]} 22... Ke7 {[%clk 0:02:03.5]} 23. Bd3 {[%clk
0:02:00.5]} 23... Nd6 {[%clk 0:02:00.8]} 24. Rb1 {[%clk 0:01:55.4]} 24... e4
{[%clk 0:01:50]} 25. Bc2 {[%clk 0:01:52.7]} 25... b5 {[%clk 0:01:50.1]} 26. Rf1
{[%clk 0:01:44.7]} 26... Rf8 {[%clk 0:01:50.1]} 27. Rxf8 {[%clk 0:01:36]} 27...
Kxf8 {[%clk 0:01:51]} 28. h4 {[%clk 0:01:36.2]} 28... Kf7 {[%clk 0:01:49.6]} 29.
g4 {[%clk 0:01:35.4]} 29... Kf6 {[%clk 0:01:48.8]} 30. Bb1 {[%clk 0:01:30]}
30... Nc4 {[%clk 0:01:40.7]} 31. Bxe4 {[%clk 0:01:29]} 31... Nxa3 {[%clk
0:01:40.8]} 32. Bc6 {[%clk 0:01:04.2]} 32... Nb1 {[%clk 0:01:23.6]} 33. Kd3
{[%clk 0:00:58.8]} 33... a3 {[%clk 0:01:21.2]} 34. Bd5 {[%clk 0:00:58.8]} 34...
Ke5 {[%clk 0:01:07.2]} 35. Ba2 {[%clk 0:00:58.2]} 35... Nxc3 {[%clk 0:01:03.9]}
36. Kxc3 {[%clk 0:00:58.6]} 36... c5 {[%clk 0:01:04.4]} 37. h5 {[%clk
0:00:54.2]} 37... Kf6 {[%clk 0:00:55.4]} 38. e4 {[%clk 0:00:52.1]} 38... Kg5
{[%clk 0:00:55.3]} 39. e5 {[%clk 0:00:52.1]} 39... c4 {[%clk 0:00:42.7]} 40. Bb1
{[%clk 0:00:41.1]} 40... g6 {[%clk 0:00:26.9]} 41. hxg6 {[%clk 0:00:37.3]} 41...
Kh6 {[%clk 0:00:26.7]} 42. e6 {[%clk 0:00:36.8]} 42... a2 {[%clk 0:00:19.4]} 43.
Bxa2 {[%clk 0:00:36.4]} 43... Kxg6 {[%clk 0:00:19.9]} 44. Bb1+ {[%clk
0:00:33.9]} 44... Kf6 {[%clk 0:00:20.2]} 45. Bf5 {[%clk 0:00:33.5]} 45... Ke7
{[%clk 0:00:17.7]} 46. Kb4 {[%clk 0:00:33.5]} 1-0